Cogmind - Beta 15 @@@ ROGUE MODE // 2025.05.10 @ 22:41:10 Player: Darcyisverycute Result: Destroyed by Y-72 Warden with Quantum Rifle Performance ------------- Evolutions (7) 3500 Regions Visited (21) 4200 Robots Destroyed (149) 745 Value Destroyed (6604) 6604 Prototype IDs (88) 1760 Alien Tech Used (3) 600 Bonus (7552) 7552 TOTAL SCORE: 24961 Bonus ------- High Alert Combat Kills 337 Follower Combat Kills 179 Network Hubs Disabled 400 Registered with UFD 300 Met Optimus in HQ 500 Met Data Miner 300 Met Warlord at Base 500 MAIN.C Attacked Warlord 500 Warlord Defense Kills 1590 Met R17 at Cetus 500 Met R17 at Research 2000 Scanned by Researcher 500 Friendly Fire -54 Cogmind --------- Core Integrity 0/1300 Matter 182/300 Energy 18/100 System Corruption 5% Temperature Cool (9) Movement Flying (22) Location -3/Protoforge Parts ------- > --- POWER (2) -------- (None) > --- PROPULSION (8) --- Experimental Surge Thruster > --- UTILITY (9) ------ Advanced Terrain Scan Processor > --- WEAPON (2) ------- Experimental Terror Saw > --- INVENTORY (5) ---- Core Cannon Peak State ------------ > --- POWER ------------ Micro Fission Core Light Quantum Reactor > --- PROPULSION ------- Gravmag Array Antigrav System Linear Gravjet Cooled Antigrav System Cooled Antigrav System Antigrav Array > --- UTILITY ---------- High-capacity Storage Unit Spectral Analyzer Makeshift Sensor Array Experimental Signal Interpreter Advanced Terrain Scan Processor Centrium Medium Armor Plating Improved Hacking Suite Improved Hacking Suite Improved Hacking Suite > --- WEAPON ----------- Sigix Broadsword > --- INVENTORY -------- Gravmag System Combat Antigrav System Advanced Power Amplifier Advanced Heat Sink Advanced Terrain Scanner Microactuators Advanced Transmission Jammer Improved Phase Shifter Cloaking Device Graphene Brace Phase Redirector Core Reset Matrix Subatomic Replicator Vortex Cannon Vortex Cannon Core Cannon Compact Tesla Bomb Launcher Compact Tesla Bomb Launcher Improved Plasma Cutter [Rating: 168] Favorites ----------- Power Light Ion Engine Engine Light Ion Engine Power Core Fission Core Reactor Light Antimatter Reactor Propulsion Light Treads Treads Light Treads Leg Carbon-fiber Leg Wheel Armored Huge Wheel Hover Unit Linear Gravjet Flight Unit Experimental Surge Thruster Utility High-capacity Storage Unit Device Seismic Detector Storage High-capacity Storage Unit Processor Enhanced Optical Array Hackware Hacking Suite Protection Centrium Medium Armor Plating Weapon Light Assault Rifle Energy Gun Small Laser Energy Cannon Vortex Cannon Ballistic Gun Light Assault Rifle Ballistic Cannon Light Cannon Launcher Heavy Shock Bomb Launcher Special Weapon Multitool Impact Weapon Heavy Flail Slashing Weapon Katana Piercing Weapon Kinetic Spear Special Melee Weapon Dirty Datajack Build | -11 -10 -10 -8 -6 -6 -6 -6 -5 -5 -5 -5 -5 -5 -4 -4 -4 -4 -3 -3 -3 -3 ------- Run | Yrd Mat Sub Scr Fac Low Low Dat Pro Fac Ext Cet Arc Hub Fac Upp Upp War Pro Res Qua Frg Slots Evolved 14 | . . . . 8 . . . . 2 . . . . 2 . . . . 2 . . Power 1 | . . . . 1 . . . . . . . . . . . . . . . . . Propulsion 6 | . . . . 4 . . . . . . . . . 1 . . . . 1 . . Utility 7 | . . . . 3 . . . . 2 . . . . 1 . . . . 1 . . Weapon . | . . . . . . . . . . . . . . . . . . . . . . Parts Attached 188 | 8 5 11 6 24 1 . . 5 17 20 9 12 1 20 3 6 7 1 10 9 13 Power 23 | 1 2 . 1 4 . . . . 1 1 3 1 . 3 2 1 1 . 1 . 1 Engine 9 | 1 2 . 1 2 . . . . 1 . 1 . . 1 . . . . . . . Core 4 | . . . . 1 . . . . . 1 1 . . . 1 . . . . . . Reactor 10 | . . . . 1 . . . . . . 1 1 . 2 1 1 1 . 1 . 1 Propulsion 57 | 2 . 5 4 9 . . . . 7 11 2 . . 10 1 . 1 . 1 3 1 Treads 17 | 2 . 5 3 1 . . . . . 4 2 . . . . . . . . . . Leg 11 | . . . . 3 . . . . . 6 . . . 2 . . . . . . . Wheel 7 | . . . 1 5 . . . . 1 . . . . . . . . . . . . Hover 21 | . . . . . . . . . 6 1 . . . 8 1 . 1 . 1 3 . Flight 1 | . . . . . . . . . . . . . . . . . . . . . 1 Utility 65 | 2 2 2 1 6 1 . . . 8 2 3 9 1 5 . 4 3 . 6 3 7 Device 31 | 1 . . 1 2 . . . . 4 1 . 7 . . . 4 1 . 3 3 4 Storage 7 | 1 2 1 . . . . . . 1 . . . . . . . . . . . 2 Processor 7 | . . . . 1 . . . . 1 . . . . 2 . . 2 . 1 . . Hackware 9 | . . . . 2 . . . . 1 . . 2 1 2 . . . . 1 . . Protection 11 | . . 1 . 1 1 . . . 1 1 3 . . 1 . . . . 1 . 1 Artifact . | . . . . . . . . . . . . . . . . . . . . . . Weapon 43 | 3 1 4 . 5 . . . 5 1 6 1 2 . 2 . 1 2 1 2 3 4 Energy Gun 8 | 2 . 1 . 1 . . . . . 2 1 . . . . 1 . . . . . Energy Cannon 6 | . . . . 1 . . . . . . . . . . . . 1 1 1 2 . Ballistic Gun 6 | 1 1 1 . . . . . 2 . 1 . . . . . . . . . . . Ballistic Cannon 2 | . . 1 . . . . . . . . . 1 . . . . . . . . . Launcher 6 | . . . . . . . . 1 . 2 . . . 1 . . . . . . 2 Special Weapon 3 | . . 1 . 1 . . . . . . . 1 . . . . . . . . . Impact Weapon 1 | . . . . 1 . . . . . . . . . . . . . . . . . Slashing Weapon 8 | . . . . 1 . . . 1 . 1 . . . 1 . . 1 . . 1 2 Piercing Weapon 2 | . . . . . . . . . 1 . . . . . . . . . 1 . . Special Melee Weapon 1 | . . . . . . . . 1 . . . . . . . . . . . . . Unidentified Prototypes 18 | . . . . . . . . . . 1 3 . . 1 . . 5 . 1 3 4 Corrupted Parts 5 | . . . . 1 . . . . . . 4 . . . . . . . . . . System Corruption 41 | . . . . 3 . . . . . . 38 . . . . . . . . . . Parts Lost 61 | . 1 5 . 3 . . . 1 4 8 2 . 2 11 2 . 1 . . 1 20 Power 13 | . 1 . . 2 . . . . 1 1 1 . . 4 . . . . . 1 2 Propulsion 24 | . . 2 . 1 . . . . 2 3 1 . . 5 2 . . . . . 8 Utility 16 | . . 2 . . . . . . . 4 . . 2 . . . . . . . 8 Weapon 8 | . . 1 . . . . . 1 1 . . . . 2 . . 1 . . . 2 Highest Loss Streak 9 | . 1 2 . 1 . . . 1 4 4 1 . 2 5 2 . 1 . . 1 9 To Critical Strikes 1 | . . . . . . . . . . . 1 . . . . . . . . . . Average Backups 17 | 2 12 16 17 19 19 19 19 19 18 17 17 18 19 18 17 18 19 18 19 18 14 Power . | . . 1 . . . . . . . . 1 1 1 1 . 1 1 1 1 . . Propulsion 3 | 1 6 6 2 1 4 4 4 4 2 2 3 4 6 7 1 . . 1 . 1 1 Utility 7 | . 2 4 7 11 9 8 8 8 9 8 7 8 8 5 8 10 10 9 10 9 7 Weapon 3 | . 3 3 4 3 2 2 2 2 3 3 3 2 2 2 5 5 5 5 5 4 3 Tool/Special . | . . . . . . . . . . . . . . . . . . . . . . Unused Backups 71 | . 6 2 18 7 1 1 . 1 5 2 1 4 . 1 1 4 5 . 3 3 6 Power 8 | . . 1 3 . . . . . . 1 . 1 . . . 1 . . 1 . . Propulsion 13 | . 4 . 6 . . . . . . 1 1 . . 1 . . . . . . . Utility 33 | . 2 1 6 7 . 1 . . 3 . . 2 . . 1 1 2 . 1 2 4 Weapon 14 | . . . 3 . 1 . . . 2 . . 1 . . . 2 3 . 1 1 . Tool/Special 3 | . . . . . . . . 1 . . . . . . . . . . . . 2 Average Slot Usage (%) 84 | . 93 93 85 74 80 80 73 80 85 89 81 75 72 78 76 77 88 90 94 86 70 Engine 7 | . 7 14 12 5 13 13 13 13 7 4 2 . . . . . . . . . . Core 1 | . . . . . . . . . . 3 5 3 . . 1 5 5 5 4 3 . Reactor 1 | . . . . 1 . . . . . . . 6 11 7 5 5 5 5 4 4 6 Treads 14 | . 28 28 27 10 . . . . . 5 9 11 11 8 . . . . . . . Leg 1 | . . . . 2 . . . . . 12 2 . . . . . . . . . . Wheel 3 | . . . . 11 20 20 20 20 6 2 5 5 5 3 . . . . . . . Hover 6 | . . . . . . . . . 17 5 . . . 9 31 25 29 31 33 28 21 Device 5 | . 14 3 2 8 5 6 6 6 7 2 5 6 6 6 4 8 6 5 8 7 8 Storage 8 | . 14 14 13 6 6 6 6 6 5 5 5 5 5 5 5 5 5 5 4 4 3 Processor 5 | . . . . 5 6 6 6 6 10 11 11 11 9 10 10 10 13 15 14 14 13 Hackware 6 | . . . . 4 13 13 13 13 14 12 5 5 13 15 15 15 15 15 14 14 10 Protection 2 | . . 4 . 2 . . . . . 6 10 9 . 2 1 . . . . 1 . Energy Gun 6 | . 14 7 14 3 6 6 . 2 . 1 3 . . 1 . 1 . . . . . Ballistic Gun 6 | . 14 18 14 1 . . . . . 1 1 . . . . . . . . . . Slashing Weapon 1 | . . . . 1 6 6 6 3 2 . . 4 5 3 . . 3 3 . 1 3 Peak Build Rating 168 | 9 10 10 23 68 67 64 64 67 77 82 120 120 109 130 101 100 124 125 149 168 168 Average Rating 58 | 6 9 8 12 51 64 64 56 60 72 74 104 113 105 112 88 94 114 121 144 155 136 On Entrance 74 | . 9 10 9 17 64 64 64 64 60 69 67 120 109 99 84 91 94 115 125 143 160 Naked Turns . | . . . . . . . . . . . . . . . . . . . . . . Heaviest Build 109 | 12 29 50 52 80 75 72 72 74 76 92 105 109 85 91 65 73 81 82 85 100 86 Greatest Support 160 | 40 40 40 45 84 84 84 84 84 84 70 160 160 160 160 73 71 75 75 88 104 111 Greatest Overweight (x) 6 | . . 1 6 6 . . . . 1 6 3 . 2 3 1 1 1 1 . 1 3 Average Overweight (x) . | . . . . 1 . . . . . 1 2 . . 1 . . . . . . . Largest Inventory Capacity 20 | 8 15 20 20 20 20 20 20 20 20 20 20 20 20 20 20 20 20 20 20 20 20 Average Capacity 18 | 7 13 17 19 20 20 20 20 20 20 20 20 20 20 20 20 20 20 20 20 20 17 Most Carried 20 | 5 15 20 20 20 20 20 20 20 20 20 20 20 20 20 20 20 20 20 20 20 20 Average Carried 18 | 3 12 17 17 19 19 19 20 19 19 19 19 19 20 18 19 19 19 19 19 19 15 Final Capacity 20 | 8 15 20 20 20 20 20 20 20 20 20 20 20 20 20 20 20 20 20 20 20 5 Final Carried 20 | 5 15 20 20 20 20 20 20 20 18 20 20 20 20 20 19 20 20 19 20 19 2 Class Distribution -------------------- 45% | Mutant 18% | Hacker-Mutant 13% | Scavenger-Mutant 8% | Hacker-Scout 3% | Hacker-Sprinter Dominant Class ---------------- Mutant | -10/Materials Mutant | -10/Subcaves Mutant | -8/Scraptown Derelict-Mutant | -6/Factory Hacker-Mutant | -6/Lower Caves Hacker-Mutant | -6/Lower Caves Hacker-Mutant | -6/Data Miner Hacker-Mutant | -5/Proximity Caves Hacker-Scout | -5/Factory Hacker-Mutant | -5/Extension Scavenger-Mutant | -5/Cetus Scavenger-Mutant | -5/Archives Scavenger-Assassin | -5/Hub_04(d) Scavenger-Mutant | -4/Factory Hacker-Mutant | -4/Upper Caves Hacker-Mutant | -4/Upper Caves Hacker-Sprinter | -4/Warlord Hacker-Mutant | -3/Proximity Caves Hacker-Scout | -3/Research Hacker-Scout | -3/Quarantine Hacker-Scout | -3/Protoforge Resources | -11 -10 -10 -8 -6 -6 -6 -6 -5 -5 -5 -5 -5 -5 -4 -4 -4 -4 -3 -3 -3 -3 ----------- Run | Yrd Mat Sub Scr Fac Low Low Dat Pro Fac Ext Cet Arc Hub Fac Upp Upp War Pro Res Qua Frg Matter Collected 4861 | 304 265 287 290 436 86 18 . 116 124 593 319 528 . 459 65 40 459 20 134 160 158 Remotely . | . . . . . . . . . . . . . . . . . . . . . . Salvage Created 6564 | 87 542 348 . 930 190 11 . 51 76 781 699 560 . 1068 . . 451 . 181 351 238 Parts 317 | 8 50 29 . 25 5 1 . 4 8 35 31 35 . 38 . . 9 . 11 14 14 Haulers Intercepted 2 | . 2 . . . . . . . . . . . . . . . . . . . . Recyclers Shooed 5 | . . . . 2 . . . . . 1 . . . 2 . . . . . . . Parts Field Recycled . | . . . . . . . . . . . . . . . . . . . . . . Retrieved Matter . | . . . . . . . . . . . . . . . . . . . . . . Parts Self-Destructed 24 | . . 12 . . 2 2 . 3 . . . . . . 2 3 . . . . . Prevented 4 | . . . . . . . . . . . . . . . 1 . . 3 . . . Kills | -11 -10 -10 -8 -6 -6 -6 -6 -5 -5 -5 -5 -5 -5 -4 -4 -4 -4 -3 -3 -3 -3 ------- Run | Yrd Mat Sub Scr Fac Low Low Dat Pro Fac Ext Cet Arc Hub Fac Upp Upp War Pro Res Qua Frg Combat Hostiles Destroyed 93 | . 11 9 . 9 1 . . 1 . 14 8 4 . 19 . . 12 . . . 5 Melee 16 | . . . . 3 1 . . . . 3 . . . 4 . . . . . . 5 Guns 26 | . 11 7 . 4 . . . . . 3 . . . 1 . . . . . . . Cannons 7 | . . 2 . 1 . . . . . . . 4 . . . . . . . . . AOE 33 | . . . . . . . . 1 . 6 . . . 14 . . 12 . . . . Classes Destroyed 18 | 3 5 2 . 2 1 . . 1 . 1 . . . . . . 2 . . . 1 Worker 16 | 1 2 . . 3 . . . . 2 . . . . 3 . . . . 2 2 1 Builder 3 | . . . . 2 . . . . 1 . . . . . . . . . . . . Tunneler 4 | 1 2 . . . . . . . . . . . . 1 . . . . . . . Hauler 2 | . 2 . . . . . . . . . . . . . . . . . . . . Recycler 9 | 1 1 . . 2 . . . . . . . . . 2 . . . . 1 2 . Operator 13 | . 1 . . 1 . . . . . 1 . 9 . . . . . . 1 . . Watcher 9 | . 3 . . . . . . . 1 . 2 . . 1 . . . . . 1 1 Swarmer 17 | . 9 . . . . . . . . . . . . 5 . . . . . . 3 Grunt 31 | . 2 . . 5 . . . . . 7 . . . 8 . . 9 . . . . Brawler 1 | . . . . . . . . . . . . . . . . . 1 . . . . Duelist 3 | . . . . . . . . . . 2 . . . 1 . . . . . . . Protector 2 | . . . . . . . . . . . . . . . . . 2 . . . . Sentry 11 | . . 1 . 2 1 . . . . 3 . 4 . . . . . . . . . Hunter 7 | . . . . . . . . 1 . 2 . . . 4 . . . . . . . Programmer 3 | . . . . 2 . . . . . . . . . 1 . . . . . . . Cetus Guard 8 | . . . . . . . . . . . 8 . . . . . . . . . . Decapitator 2 | . . . . . . . . . . . . . . . . . . . . . 2 Subdweller 8 | . . 8 . . . . . . . . . . . . . . . . . . . Decomposer 1 | . . . . . . 1 . . . . . . . . . . . . . . . Packrat 1 | . . . . . 1 . . . . . . . . . . . . . . . . Tinkerer 1 | . . . . . 1 . . . . . . . . . . . . . . . . Best Kill Streak 12 | 2 5 2 . 3 1 . . 1 3 4 5 6 . 9 . . 12 . 2 2 2 Combat Bots Only 12 | . 3 2 . 2 1 . . 1 . 4 4 2 . 7 . . 12 . . . 2 Max Kills in Single Turn 6 | 1 2 1 . 1 1 1 . 1 1 2 1 1 . 6 . . 2 . 1 1 1 Gunslinging 1 | . 1 . . . . . . . . . . . . . . . . . . . . Exploded 5 | . . . . . . . . 1 . 2 . . . 5 . . 2 . . . . Melee 1 | . . . . 1 1 . . . . 1 . . . 1 . . . . . . 1 Uniques/NPCs Destroyed . | . . . . . . . . . . . . . . . . . . . . . . Combat | -11 -10 -10 -8 -6 -6 -6 -6 -5 -5 -5 -5 -5 -5 -4 -4 -4 -4 -3 -3 -3 -3 -------- Run | Yrd Mat Sub Scr Fac Low Low Dat Pro Fac Ext Cet Arc Hub Fac Upp Upp War Pro Res Qua Frg Hostile Shots Fired 1089 | . 58 77 6 154 9 . . 6 28 103 33 31 27 171 11 5 33 . 30 48 259 Missed 393 | . 16 23 2 37 4 . . 1 11 33 12 10 4 59 . 3 17 . 18 15 128 Hits 696 | . 42 54 4 117 5 . . 5 17 70 21 21 23 112 11 2 16 . 12 33 131 Melee 20 | . . . . . . . . . . 4 . . . 12 . . . . . . 4 Projectile 676 | . 42 54 4 117 5 . . 5 17 66 21 21 23 100 11 2 16 . 12 33 127 Critical Strikes 41 | . . 1 1 4 . . . . 1 2 4 2 1 10 . . . . 1 . 14 Actively Blocked 2 | . . . . . . . . . . . . . . . . . . . . . 2 Damage Taken 14583 | . 357 1060 57 1655 38 . . 226 491 1582 571 337 768 2281 186 41 392 . 297 820 3424 Core 2577 | . 26 181 10 135 . . . 52 143 111 56 64 135 161 29 . 149 . 80 67 1178 Absorbed by Shields 341 | . . . . . . . . . . 7 . 206 . 50 . . 26 . . . 52 Reduced by Siege Mode 20 | . . . . . . . . . . . . 20 . . . . . . . . . Redirected to Shielding 131 | . . . . . . . . . . . . . . . . . . . . . 131 Regen/Repaired (Parts) 521 | . . . . 21 . . . . . . . . . . . . 104 . . 118 278 Core Remaining (%) 62 | 100 . . 13 . . . . 78 . . . . 49 . . . . 70 . . . Volleys Fired 332 | 8 52 56 . 43 6 2 . 4 2 53 17 33 . 20 . 2 19 3 6 6 . Largest 2 | 2 2 2 . 1 1 1 . 2 1 1 1 1 . 1 . 1 1 1 1 2 . Hottest 225 | 60 60 100 . 120 120 120 . 148 30 225 46 47 . 80 . 75 46 50 50 100 . Shots Fired 431 | 16 95 107 . 43 5 3 . 6 2 52 17 28 . 20 . 2 19 3 6 7 . Gun 273 | 16 95 84 . 40 5 3 . 1 . 24 . . . 3 . 2 . . . . . Cannon 65 | . . 22 . 3 . . . . . . . 24 . . . . . 3 6 7 . Launcher 91 | . . . . . . . . 5 2 28 17 3 . 17 . . 19 . . . . Special 2 | . . 1 . . . . . . . . . 1 . . . . . . . . . Kinetic 199 | 8 52 96 . . . . . 1 . 18 . 24 . . . . . . . . . Thermal 121 | 8 43 11 . 40 5 3 . . . 6 . . . 3 . 2 . . . . . Explosive 60 | . . . . . . . . 5 2 17 . . . 17 . . 19 . . . . Electromagnetic 34 | . . . . 3 . . . . . 11 17 3 . . . . . . . . . Entropic 16 | . . . . . . . . . . . . . . . . . . 3 6 7 . Robot Hit Streak 20 | 6 9 12 . 12 . . . . . 7 8 20 . 7 . . . . . . . Robot Miss Streak 4 | 1 4 2 . 4 . . . . . 3 1 2 . . . . . . . . . Penetration Max 1 | . . . . . . . . . . 1 . . . . . . . . . . . Secondary Targets 2 | . 1 1 . . . . . . . . . . . . . . . . . . . Max Gunslinging Chain 1 | . 1 1 . . . . . . . . . . . . . . . . . . . Shots Hit Robots 336 | 11 58 81 . 49 8 1 . 2 5 24 1 34 . 33 . . . . 6 6 17 Core Hits 263 | 4 29 24 . 16 4 . . 1 3 32 13 22 . 46 . . 55 . 3 4 7 Critical Kills 1 | . . 1 . . . . . . . . . . . . . . . . . . . Critical Parts Destroyed 1 | . . . . 1 . . . . . . . . . . . . . . . . . Critical Strikes 19 | . . 3 . 1 1 . . . . 2 . 1 . 3 . . . . 1 2 5 Burn 1 | . . . . . . . . . . 1 . . . . . . . . . . . Destroy 2 | . . 2 . . . . . . . . . . . . . . . . . . . Blast 2 | . . 1 . . . . . . . . . 1 . . . . . . . . . Smash 1 | . . . . 1 . . . . . . . . . . . . . . . . . Sever 9 | . . . . . 1 . . . . . . . . 3 . . . . . . 5 Impale 4 | . . . . . . . . . . 1 . . . . . . . . 1 2 . Melee Attacks 267 | . . . . 46 11 2 . 3 33 10 . 11 6 44 . . . 4 29 25 43 Impact 41 | . . . . 41 . . . . . . . . . . . . . . . . . Slashing 156 | . . . . 5 11 2 . . 12 4 . 11 6 44 . . . 4 1 13 43 Piercing 70 | . . . . . . . . 3 21 6 . . . . . . . . 28 12 . Sneak Attacks 42 | . . . . 7 4 1 . 1 4 . . 10 . 5 . . . . 5 4 1 Combat Hostiles 1 | . . . . . . . . 1 . . . . . . . . . . . . . Follow-up Attacks . | . . . . . . . . . . . . . . . . . . . . . . Damage Inflicted 20614 | 124 695 781 . 2149 441 73 . 7 362 2126 1194 2258 1 3884 26 . 4221 . 462 714 1096 Guns 2623 | 124 695 524 . 845 . . . . . 367 . . . 68 . . . . . . . Cannons 1130 | . . 257 . 82 . . . . . . . 791 . . . . . . . . . Explosions 9811 | . . . . . . . . . . 1497 1194 75 . 2824 . . 4221 . . . . Melee 6984 | . . . . 1222 441 73 . 7 362 234 . 1392 . 992 . . . . 462 714 1085 Ramming 66 | . . . . . . . . . . 28 . . 1 . 26 . . . . . 11 Kinetic 2188 | 58 338 701 . . . . . . . 300 . 791 . . . . . . . . . Thermal 2624 | 66 357 80 . 845 . . . . . 67 51 . . 1158 . . . . . . . Explosive 6686 | . . . . . . . . . . 947 . . . 1518 . . 4221 . . . . Electromagnetic 2066 | . . . . 82 . . . . . 550 1143 75 . 216 . . . . . . . Impact 1149 | . . . . 1149 . . . . . . . . . . . . . . . . . Slashing 4882 | . . . . 73 441 73 . . 207 50 . 1392 . 992 . . . . . 569 1085 Piercing 953 | . . . . . . . . 7 155 184 . . . . . . . . 462 145 . Highest Corruption 46 | . . . 1 5 5 5 5 5 3 8 46 46 24 2 2 2 2 . . 2 5 Average Corruption 10 | . . . 1 3 5 5 5 5 2 3 32 35 20 1 2 2 2 . . 1 2 Corruption Purged 27 | . . . . . . . . . . . . 27 . . . . . . . . . Corruption Blocked . | . . . . . . . . . . . . . . . . . . . . . . Effects 189 | . . . . 12 20 14 2 11 . 24 20 60 12 4 . 4 . . . . 6 Message Errors 53 | . . . . 1 4 2 1 4 . 7 5 21 2 1 . 3 . . . . 2 Matter Fused 39 | . . . . 4 7 3 . 1 . 5 4 10 3 . . . . . . . 2 Heat Flow Errors 26 | . . . . 1 2 3 1 2 . 2 1 9 3 1 . 1 . . . . . Energy Discharges 18 | . . . . 2 3 . . 1 . 5 2 3 1 . . . . . . . 1 Parts Rejected 1 | . . . . . . . . . . . 1 . . . . . . . . . . Parts Fused 2 | . . . . . 1 . . . . . . 1 . . . . . . . . . Data Loss (minor) 22 | . . . . 3 1 4 . . . 2 4 5 1 2 . . . . . . . Data Loss (major) 5 | . . . . . . . . . . . 1 4 . . . . . . . . . Misfires 5 | . . . . . 1 1 . 2 . 1 . . . . . . . . . . . Alerts 7 | . . . . 1 1 1 . 1 . . 1 . 1 . . . . . . . 1 Misdirections 4 | . . . . . . . . . . . 1 2 1 . . . . . . . . Weapon Failures 7 | . . . . . . . . . . 2 . 5 . . . . . . . . . Overload Shots 2 | . . . . . . . . . . 2 . . . . . . . . . . . Overflow Damage 2197 | . . . . 572 106 63 . . 95 71 48 361 . 243 . . 97 . 226 100 215 Projectiles . | . . . . . . . . . . . . . . . . . . . . . . Explosions 375 | . . . . . . . . . . 71 48 . . 159 . . 97 . . . . Melee 1822 | . . . . 572 106 63 . . 95 . . 361 . 84 . . . . 226 100 215 Knockbacks 11 | . . 2 . 8 . . . . . . . . 1 . . . . . . . . Impact 8 | . . . . 7 . . . . . . . . 1 . . . . . . . . Kinetic 2 | . . 2 . . . . . . . . . . . . . . . . . . . Secondary 1 | . . . . 1 . . . . . . . . . . . . . . . . . Self-Inflicted Damage 224 | . . . . . . . . 31 13 132 3 . . . 13 . 27 . . . 5 Shots 12 | . . . . . . . . 1 1 8 1 . . . . . 1 . . . . Rammed 4 | . . . . . . . . . . 1 . . 1 . 1 . . . . . 1 Targets Rammed 9 | . . . . . . . . . . 6 . . 1 . 1 . . . . . 1 Kicked 5 | . . . . . . . . . . 5 . . . . . . . . . . . Crushed . | . . . . . . . . . . . . . . . . . . . . . . Highest Temperature 390 | . 42 . 24 363 390 276 91 244 8 288 93 269 226 158 153 139 236 61 69 . . Average Temperature 67 | . 18 . 24 122 122 97 47 99 8 81 29 79 110 30 31 89 80 29 18 . . Received Heat Transfer 2316 | . 42 153 55 644 12 . . . 24 288 . 34 126 499 . . 78 . 64 . 297 Effects 5 | . . . . . 1 1 . . . 2 . . . . . . 1 . . . . Shutdowns 1 | . . . . . 1 . . . . . . . . . . . . . . . . Energy Bleed 1 | . . . . . . 1 . . . . . . . . . . . . . . . Interference 3 | . . . . . . . . . . 2 . . . . . . 1 . . . . Siege Activations 2 | . . . . . . . . . . . . 2 . . . . . . . . . Total Turns 58 | . . . . . . . . . . . . 58 . . . . . . . . . Longest Duration 36 | . . . . . . . . . . . . 36 . . . . . . . . . Martial Activations . | . . . . . . . . . . . . . . . . . . . . . . Shielding Activations . | . . . . . . . . . . . . . . . . . . . . . . Robots Disrupted . | . . . . . . . . . . . . . . . . . . . . . . Combat Hostiles . | . . . . . . . . . . . . . . . . . . . . . . Robots Corrupted 18 | . . . . 7 . . . . . 2 8 . . 1 . . . . . . . Combat Hostiles 11 | . . . . 1 . . . . . 2 8 . . . . . . . . . . Parts Fried 30 | . . . . 17 . . . . . 5 8 . . . . . . . . . . Impact Corruptions 19 | . . . . 19 . . . . . . . . . . . . . . . . . Robots Melted . | . . . . . . . . . . . . . . . . . . . . . . Combat Hostiles . | . . . . . . . . . . . . . . . . . . . . . . Parts Melted 3 | . . . . 3 . . . . . . . . . . . . . . . . . Heat Transferred 3371 | 150 800 175 . 1261 . . . . . 161 50 . . 774 . . . . . . . Parts Sabotaged . | . . . . . . . . . . . . . . . . . . . . . . Parts Stolen . | . . . . . . . . . . . . . . . . . . . . . . Parts Stripped . | . . . . . . . . . . . . . . . . . . . . . . Power Chain Reactions 3 | . . . . . . . . . . . 3 . . . . . . . . . . Alert | -11 -10 -10 -8 -6 -6 -6 -6 -5 -5 -5 -5 -5 -5 -4 -4 -4 -4 -3 -3 -3 -3 ------- Run | Yrd Mat Sub Scr Fac Low Low Dat Pro Fac Ext Cet Arc Hub Fac Upp Upp War Pro Res Qua Frg Maximum Alert Level 3 | . . . . . . . . . . 1 1 . . 3 . . . . . 1 1 Low Security (%) 89 | 100 100 . . 100 . . . . 100 81 64 100 100 26 . . . . 100 92 93 Level 1 6 | . . . . . . . . . . 18 35 . . 23 . . . . . 7 6 Level 2 . | . . . . . . . . . . . . . . 6 . . . . . . . Level 3 3 | . . . . . . . . . . . . . . 43 . . . . . . . Level 4 . | . . . . . . . . . . . . . . . . . . . . . . Level 5 . | . . . . . . . . . . . . . . . . . . . . . . High Security . | . . . . . . . . . . . . . . . . . . . . . . Max Security . | . . . . . . . . . . . . . . . . . . . . . . Peak Influence 841 | 5 127 . . 101 . . . . 56 276 243 109 90 841 . . . . 17 316 272 Initial 173 | . 3 . . . . . . . . 2 133 73 . 39 . . . . . 2 173 Average 84 | . 31 . . 40 . . . . 18 95 183 24 11 451 . . . . 4 135 53 Influence Increases 5166 | 15 355 20 . 361 20 . . 20 257 834 260 131 106 1213 . 30 240 . 127 529 648 Destroy 0b10 Robot/C 1840 | . 220 20 . 180 20 . . 20 . 460 160 80 . 380 . . 200 . . . 100 Destroy 0b10 Robot/NC 295 | 15 55 . . 40 . . . . 20 10 10 45 . 35 . . 10 . 20 25 10 Destroy Leader 248 | . 50 . . 60 . . . . 2 60 . . . 62 . . . . . 2 12 Allied During Kill 28 | . . . . . . . . . . 28 . . . . . . . . . . . Successful Hack 338 | . 28 . . 14 . . . . 9 26 . . . 20 . . . . 10 153 78 Select Force Hacks 100 | . . . . . . . . . . . . . 100 . . . . . . . . Disable Machine 390 | . . . . 15 . . . . . 45 . . . 255 . . . . . 75 . Destroy Structure 742 | . 2 . . 22 . . . . 76 160 60 6 6 296 . . . . 52 34 28 Partial Spotted 90 | . . . . . . . . . 15 . . . . . . . . . 30 . 45 Lose Combat Pursuer 1095 | . . . . 30 . . . . 135 45 30 . . 165 . 30 30 . 15 240 375 Influence Decreases 5039 | 10 359 21 . 348 33 . . 20 250 602 316 314 26 1029 199 75 78 182 123 225 829 Entered New Map 721 | . 2 1 . . 5 . . . . 5 106 110 . 41 99 13 20 182 . 2 135 Time Decay 2789 | 10 345 20 . 318 28 . . 10 193 387 190 204 26 278 80 62 48 . 123 213 254 Lost Part 497 | . 10 . . 30 . . . 10 35 70 20 . . 110 20 . 10 . . 10 172 Lost Ally 140 | . . . . . . . . . . 140 . . . . . . . . . . . Purge Threat 892 | . 2 . . . . . . . 22 . . . . 600 . . . . . . 268 Squads Dispatched 48 | . 1 . . 5 . . . . 11 3 . . 4 10 . . . . 8 2 4 Investigation 24 | . . . . . . . . . 7 2 . . 4 6 . . . . 4 . 1 Extermination 8 | . . . . 2 . . . . 2 . . . . 2 . . . . . 1 1 Reinforcement 16 | . 1 . . 3 . . . . 2 1 . . . 2 . . . . 4 1 2 Assault . | . . . . . . . . . . . . . . . . . . . . . . Garrison . | . . . . . . . . . . . . . . . . . . . . . . Intercept . | . . . . . . . . . . . . . . . . . . . . . . Searches Triggered . | . . . . . . . . . . . . . . . . . . . . . . Data Miner Redirects 8 | . . . . . . . . . . 1 . . 3 3 . . . . . . 1 Construction Impeded 1 | . . . . . . . . . . . . . . 1 . . . . . . . Haulers Reinforced 1 | . . . . . . . . . . . . . . . . . . . 1 . . Active Scanning Responses . | . . . . . . . . . . . . . . . . . . . . . . Cargo Convoy Interrupts . | . . . . . . . . . . . . . . . . . . . . . . Stealth | -11 -10 -10 -8 -6 -6 -6 -6 -5 -5 -5 -5 -5 -5 -4 -4 -4 -4 -3 -3 -3 -3 --------- Run | Yrd Mat Sub Scr Fac Low Low Dat Pro Fac Ext Cet Arc Hub Fac Upp Upp War Pro Res Qua Frg Distress Signals 18 | . 2 . . . . . . . 3 2 . . . 3 . . . . 6 . 2 Communications Jammed 22 | . . . . . . . . . . . . . . . . . . . . . 22 Distress Signals 22 | . . . . . . . . . . . . . . . . . . . . . 22 Times Spotted 302 | . 23 10 10 21 1 . . 2 20 31 12 8 6 39 5 7 23 . 17 20 47 Peak Tracking Total 17 | . 5 2 5 4 1 . . 2 8 10 5 1 5 17 5 4 12 . 12 11 14 Tactical Retreats 32 | . . . . 2 . . . . 4 3 1 . . 5 . 2 1 . 1 4 9 Traps | -11 -10 -10 -8 -6 -6 -6 -6 -5 -5 -5 -5 -5 -5 -4 -4 -4 -4 -3 -3 -3 -3 ------- Run | Yrd Mat Sub Scr Fac Low Low Dat Pro Fac Ext Cet Arc Hub Fac Upp Upp War Pro Res Qua Frg Traps Triggered 10 | . . . . 1 . . . . . 1 . . . 4 . . . . . 1 3 Indirectly 1 | . . . . . . . . . . . . . . 1 . . . . . . . Trap Hack Attempts . | . . . . . . . . . . . . . . . . . . . . . . Triggered . | . . . . . . . . . . . . . . . . . . . . . . Disarmed . | . . . . . . . . . . . . . . . . . . . . . . Reprogrammed . | . . . . . . . . . . . . . . . . . . . . . . Reused . | . . . . . . . . . . . . . . . . . . . . . . Traps Extracted . | . . . . . . . . . . . . . . . . . . . . . . Installed . | . . . . . . . . . . . . . . . . . . . . . . Triggered . | . . . . . . . . . . . . . . . . . . . . . . Most Traps Carried 1 | . . . . . . . . . . . . . . . . . . 1 1 . . Machines | -11 -10 -10 -8 -6 -6 -6 -6 -5 -5 -5 -5 -5 -5 -4 -4 -4 -4 -3 -3 -3 -3 ---------- Run | Yrd Mat Sub Scr Fac Low Low Dat Pro Fac Ext Cet Arc Hub Fac Upp Upp War Pro Res Qua Frg Machines Disabled 27 | . . . . 1 . . . . . 3 . . . 17 . 1 . . . 5 . Max in Single Turn 6 | . . . . 1 . . . . . 1 . . . 6 . 1 . . . 1 . Garrison Access 4 | . . . . . . . . . 3 . . . 1 . . . . . . . . Network Hub 2 | . . . . . . . . . . . . . 2 . . . . . . . . Energy Cycler 1 | . . . . . . . . . . 1 . . . . . . . . . . . Machines Repaired . | . . . . . . . . . . . . . . . . . . . . . . Machines Dismantled . | . . . . . . . . . . . . . . . . . . . . . . Machines Sabotaged 2 | . . . . . . . . . . . . . 2 . . . . . . . . Overloaded Fab Kills . | . . . . . . . . . . . . . . . . . . . . . . Hacking | -11 -10 -10 -8 -6 -6 -6 -6 -5 -5 -5 -5 -5 -5 -4 -4 -4 -4 -3 -3 -3 -3 --------- Run | Yrd Mat Sub Scr Fac Low Low Dat Pro Fac Ext Cet Arc Hub Fac Upp Upp War Pro Res Qua Frg Machines Accessed 77 | . 5 . 3 4 1 1 4 . 13 5 . . 5 10 . 1 4 . 4 10 7 Terminals 40 | . 4 . . 3 . . . . 3 4 . . 4 5 . . . . 2 9 6 Fabricators 2 | . . . . . . . . . 1 . . . . 1 . . . . . . . Repair Stations . | . . . . . . . . . . . . . . . . . . . . . . Recycling Units 14 | . 1 . . . . . . . 6 1 . . . 4 . . . . 2 . . Scanalyzers 2 | . . . . 1 . . . . . . . . . . . . . . . 1 . Garrison Access 5 | . . . . . . . . . 3 . . . 1 . . . . . . . 1 Total Hacks 289 | . 12 . 29 12 1 1 23 . 26 8 . . 9 58 . 1 12 . 21 36 40 Successful 184 | . 9 . 29 6 1 1 23 . 14 4 . . 5 28 . 1 12 . 8 25 18 Failed 105 | . 3 . . 6 . . . . 12 4 . . 4 30 . . . . 13 11 22 Catastrophic 19 | . 1 . . 1 . . . . 2 1 . . . 3 . . . . 2 6 3 Database Lockouts . | . . . . . . . . . . . . . . . . . . . . . . Manual 94 | . 6 . . 3 . . . . 13 1 . . 5 18 . . 1 . 14 17 16 Terminals 154 | . 9 . . 9 . . . . 9 7 . . 5 31 . . . . 14 35 35 Fabricators 5 | . . . . . . . . . 2 . . . . 3 . . . . . . . Repair Stations . | . . . . . . . . . . . . . . . . . . . . . . Recycling Units 45 | . 3 . . . . . . . 10 1 . . . 24 . . . . 7 . . Scanalyzers 4 | . . . . 3 . . . . . . . . . . . . . . . 1 . Garrison Access 14 | . . . . . . . . . 5 . . . 4 . . . . . . . 5 Terminal Hacks 133 | . 7 . 29 3 1 1 23 . 4 3 . . . 12 . 1 12 . 2 21 14 Record 48 | . . . 29 . . . 7 . 1 . . . . . . . 6 . 1 3 1 Part Schematic 11 | . 1 . . . . . 8 . 1 . . . . . . . . . . 1 . Robot Schematic 5 | . . . . . . . 5 . . . . . . . . . . . . . . Robot Analysis 2 | . . . . . . . . . . . . . . . . . . . . 2 . Prototype ID Bank 12 | . . . . 1 . . 3 . . . . . . 1 . . 5 . . 1 1 Open Door 4 | . . . . . 1 1 . . . . . . . . . 1 1 . . . . Open DSF 1 | . . . . . . . . . . . . . . 1 . . . . . . . Branch Access Points 2 | . 1 . . . . . . . . . . . . 1 . . . . . . . Emergency Access Points 3 | . 1 . . . . . . . . . . . . 1 . . . . . 1 . Machine Index 1 | . . . . . . . . . . . . . . . . . . . . 1 . Terminal Index 2 | . . . . . . . . . . . . . . . . . . . . 1 1 Recycling Unit Index 2 | . . . . . . . . . . . . . . . . . . . . 1 1 Scanalyzer Index 1 | . 1 . . . . . . . . . . . . . . . . . . . . Alert Level 10 | . 1 . . 1 . . . . . 1 . . . 3 . . . . 1 1 2 Unreport Threat 8 | . 1 . . . . . . . 1 . . . . 4 . . . . . . 2 Locate Traps 3 | . . . . . . . . . . . . . . . . . . . . 1 2 Maintenance Status 1 | . . . . . . . . . . . . . . . . . . . . 1 . Security Status 1 | . . . . . . . . . . . . . . . . . . . . . 1 Patrol Status 1 | . . . . . . . . . . . . . . . . . . . . 1 . Assault Status 1 | . . . . . . . . . . 1 . . . . . . . . . . . Recall Investigation 1 | . . . . . . . . . . 1 . . . . . . . . . . . Recall Extermination 2 | . . . . . . . . . 1 . . . . 1 . . . . . . . Recall Reinforcements 1 | . . . . 1 . . . . . . . . . . . . . . . . . Registered Components 1 | . . . . . . . . . . . . . . . . . . . . 1 . Registered Prototypes 3 | . . . . . . . . . . . . . . . . . . . . 2 1 Zone Layout 5 | . 1 . . . . . . . . . . . . . . . . . . 3 1 Proto ID Catalog 1 | . . . . . . . . . . . . . . . . . . . . . 1 Fabricator Hacks 4 | . . . . . . . . . 2 . . . . 2 . . . . . . . Load Schematic 2 | . . . . . . . . . 1 . . . . 1 . . . . . . . Build 2 | . . . . . . . . . 1 . . . . 1 . . . . . . . Repair Station Hacks . | . . . . . . . . . . . . . . . . . . . . . . Recycling Unit Hacks 12 | . . . . . . . . . . . . . . 9 . . . . 3 . . Process 3 | . . . . . . . . . . . . . . 2 . . . . 1 . . Report Inventory 1 | . . . . . . . . . . . . . . 1 . . . . . . . Retrieve Matter 6 | . . . . . . . . . . . . . . 5 . . . . 1 . . Retrieve Components 2 | . . . . . . . . . . . . . . 1 . . . . 1 . . Scanalyzer 3 | . . . . 2 . . . . . . . . . . . . . . . 1 . Insert Component 2 | . . . . 1 . . . . . . . . . . . . . . . 1 . Analyze 1 | . . . . 1 . . . . . . . . . . . . . . . . . Garrison Access Hacks 4 | . . . . . . . . . 3 . . . 1 . . . . . . . . Seal Access 4 | . . . . . . . . . 3 . . . 1 . . . . . . . . Unauthorized Hacks 28 | . 2 . . 1 . . . . 5 1 . . 4 5 . . . . 3 3 4 Terminals 14 | . . . . 1 . . . . . . . . 4 1 . . . . 1 3 4 Track 1 | . . . . . . . . . . . . . . . . . . . . . 1 Botnet 7 | . . . . 1 . . . . . . . . . 1 . . . . 1 2 2 Operators 2 | . . . . . . . . . . . . . . . . . . . . 1 1 Sabotage 4 | . . . . . . . . . . . . . 4 . . . . . . . . Fabricators . | . . . . . . . . . . . . . . . . . . . . . . Repair Stations . | . . . . . . . . . . . . . . . . . . . . . . Recycling Units 14 | . 2 . . . . . . . 5 1 . . . 4 . . . . 2 . . Recyclers 1 | . 1 . . . . . . . . . . . . . . . . . . . . Mask 1 | . 1 . . . . . . . . . . . . . . . . . . . . Fedlink 12 | . . . . . . . . . 5 1 . . . 4 . . . . 2 . . Scanalyzers . | . . . . . . . . . . . . . . . . . . . . . . Garrison Access . | . . . . . . . . . . . . . . . . . . . . . . Data Cores Recovered . | . . . . . . . . . . . . . . . . . . . . . . Used . | . . . . . . . . . . . . . . . . . . . . . . Hacking Detections 40 | . 4 . . 3 . . . . 6 4 . . 2 6 . . . . 2 8 5 Full Trace Events 5 | . . . . . . . . . 2 1 . . . 1 . . . . . . 1 Feedback Events . | . . . . . . . . . . . . . . . . . . . . . . Feedback Blocked . | . . . . . . . . . . . . . . . . . . . . . . Robot Schematics Acquired 5 | . . . . . . . 5 . . . . . . . . . . . . . . Robots Built . | . . . . . . . . . . . . . . . . . . . . . . Authchips . | . . . . . . . . . . . . . . . . . . . . . . Time . | . . . . . . . . . . . . . . . . . . . . . . Total Robot Build Rating . | . . . . . . . . . . . . . . . . . . . . . . Part Schematics Acquired 12 | . 1 . . 1 . . 8 . 1 . . . . . . . . . . 1 . Parts Built 1 | . . . . . . . . . 1 . . . . . . . . . . . . Authchips . | . . . . . . . . . . . . . . . . . . . . . . Time 269 | . . . . . . . . . 152 . . . . 117 . . . . . . . Total Part Build Rating 5 | . . . . . . . . . 5 . . . . . . . . . . . . Parts Repaired . | . . . . . . . . . . . . . . . . . . . . . . Time . | . . . . . . . . . . . . . . . . . . . . . . Parts Recycled . | . . . . . . . . . . . . . . . . . . . . . . Recycled Matter 70 | . . . . . . . . . . . . . . 54 . . . . 16 . . Retrieved Matter 70 | . . . . . . . . . . . . . . 54 . . . . 16 . . Retrieved Components 4 | . . . . . . . . . . . . . . 2 . . . . 2 . . Parts Scanalyzed 1 | . . . . 1 . . . . . . . . . . . . . . . . . Part Schematics Acquired 1 | . . . . 1 . . . . . . . . . . . . . . . . . Parts Damaged . | . . . . . . . . . . . . . . . . . . . . . . Bothacking | -11 -10 -10 -8 -6 -6 -6 -6 -5 -5 -5 -5 -5 -5 -4 -4 -4 -4 -3 -3 -3 -3 ------------ Run | Yrd Mat Sub Scr Fac Low Low Dat Pro Fac Ext Cet Arc Hub Fac Upp Upp War Pro Res Qua Frg Used RIF Installer . | . . . . . . . . . . . . . . . . . . . . . . Robots Hacked . | . . . . . . . . . . . . . . . . . . . . . . Non-combat . | . . . . . . . . . . . . . . . . . . . . . . Combat . | . . . . . . . . . . . . . . . . . . . . . . Robot Hacks Applied . | . . . . . . . . . . . . . . . . . . . . . . Relay Couplers Released . | . . . . . . . . . . . . . . . . . . . . . . Fabnet Peak Effective % . | . . . . . . . . . . . . . . . . . . . . . . Robots Rewired 7 | . . . . . . . . . . 7 . . . . . . . . . . . Allies Hacked . | . . . . . . . . . . . . . . . . . . . . . . Hacks Repelled . | . . . . . . . . . . . . . . . . . . . . . . Allies | -11 -10 -10 -8 -6 -6 -6 -6 -5 -5 -5 -5 -5 -5 -4 -4 -4 -4 -3 -3 -3 -3 -------- Run | Yrd Mat Sub Scr Fac Low Low Dat Pro Fac Ext Cet Arc Hub Fac Upp Upp War Pro Res Qua Frg Total Allies 8 | . . . . . . . . . . 8 . . . . . . . . . . . Largest Group 6 | . . . . . . . . . . 6 . . . . . . . . . . . Highest-Rated Group 165 | . . . . . . . . . . 165 . . . . . . . . . . . Highest-Rated Ally 39 | . . . . . . . . . . 39 . . . . . . . . . . . Total Orders . | . . . . . . . . . . . . . . . . . . . . . . Ally Attacks 43 | . . . . . . . . . . 43 . . . . . . . . . . . Total Damage 1396 | . . . . . . . . . . 1396 . . . . . . . . . . . Kills 11 | . . . . . . . . . . 11 . . . . . . . . . . . Allies Corrupted . | . . . . . . . . . . . . . . . . . . . . . . Allies Melted 1 | . . . 1 . . . . . . . . . . . . . . . . . . Intel | -11 -10 -10 -8 -6 -6 -6 -6 -5 -5 -5 -5 -5 -5 -4 -4 -4 -4 -3 -3 -3 -3 ------- Run | Yrd Mat Sub Scr Fac Low Low Dat Pro Fac Ext Cet Arc Hub Fac Upp Upp War Pro Res Qua Frg Active Infowar (turns) 11987 | 51 1550 236 635 1068 660 396 95 391 563 1237 386 1067 227 675 178 288 656 175 499 441 513 Optics 9382 | . . . . 935 660 396 95 391 563 1237 386 1067 227 675 178 288 656 175 499 441 513 Sensors 3218 | . . . . . . . . . 542 . . 81 227 406 141 282 221 171 477 356 314 Terrain 3465 | 51 1550 236 . . . . . . 140 . . 24 64 442 . . . . 423 311 224 Structural 565 | . . . . . . . . . 59 506 . . . . . . . . . . . Seismic 2522 | . . . 635 391 612 396 95 391 2 . . . . . . . . . . . . Jamming 145 | . . . . . . . . . . . . . . . . . . . 23 . 122 ECM 12 | . . . . . . . . . 12 . . . . . . . . . . . . Robot Analysis Total 2 | . . . . . . . . . . . . . . . . . . . . 2 . Derelict Logs Recovered 12 | . . . 5 . 1 2 . 1 . . . . . . 2 1 . . . . . Drone Launches . | . . . . . . . . . . . . . . . . . . . . . . Drone Recoveries . | . . . . . . . . . . . . . . . . . . . . . . Exploration | -11 -10 -10 -8 -6 -6 -6 -6 -5 -5 -5 -5 -5 -5 -4 -4 -4 -4 -3 -3 -3 -3 ------------- Run | Yrd Mat Sub Scr Fac Low Low Dat Pro Fac Ext Cet Arc Hub Fac Upp Upp War Pro Res Qua Frg Turns Passed 16731 | 174 1550 1116 4339 1068 660 396 95 391 563 1237 386 1067 227 675 178 288 656 175 499 441 550 Spaces Moved 11939 | 84 616 464 2057 601 343 385 94 365 669 549 216 472 127 462 332 532 983 274 724 712 878 Core 444 | 3 . . 354 . . . . . . . . . . . . . . . . . 87 Treads 3638 | 81 616 464 1700 25 . . . . . 130 23 472 120 7 . . . . . . . Legs 142 | . . . . 3 . . . . . 138 . . . 1 . . . . . . . Wheels 2589 | . . . 3 573 343 385 94 365 166 180 193 . 7 280 . . . . . . . Hover 5126 | . . . . . . . . . 503 101 . . . 174 332 532 983 274 724 712 791 Flight . | . . . . . . . . . . . . . . . . . . . . . . Fastest Speed 24 | 50 160 160 50 100 100 100 100 100 44 105 130 160 130 31 35 38 33 33 28 24 24 Average Speed 108 | 156 160 198 207 127 100 100 100 100 58 176 145 160 158 97 37 39 35 54 28 33 38 Slowest Speed 540 | 160 160 240 250 400 100 100 100 100 105 540 240 160 160 330 106 110 106 98 28 89 200 Overloaded Moves 66 | . . . . . . . . . . . . . . . . . . . . 10 56 Propulsion Burnouts . | . . . . . . . . . . . . . . . . . . . . . . Robots Hopped . | . . . . . . . . . . . . . . . . . . . . . . Potential Cave-ins 23 | . . . . . 2 . . 3 . 8 . . 2 . . . 3 . 2 3 . Cave-ins Triggered 1 | . . . . . . . . . . . . . 1 . . . . . . . . Exploration Rate (%) 53 | 5 78 39 86 21 57 55 74 70 29 66 60 100 16 24 52 64 92 59 20 78 37 Regions Visited 21 Branch Regions 16 Pre-discovered Areas 9 | . . . 7 . . . 1 . 1 . . . . . . . . . . . . Known Exits Taken 13 | . . . . . 1 1 . 1 1 1 1 1 1 1 1 . . 1 1 1 . Unknown Exits Taken 8 | 1 1 1 1 1 . . 1 . . . . . . . . 1 1 . . . . Scrap Searched 17 | . . . 6 . 1 2 . 5 . . . . . . 1 2 . . . . . Spaces Dug 238 | . . . . 16 8 3 . 10 37 79 . . 6 10 . . . 7 27 21 14 Terrain Destroyed 821 | . . . . 21 8 3 . 63 42 248 53 3 6 164 . . 141 7 27 21 14 Melee 115 | . . . . 14 3 1 . . 27 1 . . 6 10 . . . 4 21 14 14 Projectile 35 | . . . . 7 5 2 . . . 2 . 3 . . . . . 3 6 7 . AOE 671 | . . . . . . . . 63 15 245 53 . . 154 . . 141 . . . . Terrain Rammed . | . . . . . . . . . . . . . . . . . . . . . . Walls Destroyed . | . . . . . . . . . . . . . . . . . . . . . . Machines Disabled . | . . . . . . . . . . . . . . . . . . . . . . Actions | -11 -10 -10 -8 -6 -6 -6 -6 -5 -5 -5 -5 -5 -5 -4 -4 -4 -4 -3 -3 -3 -3 --------- Run | Yrd Mat Sub Scr Fac Low Low Dat Pro Fac Ext Cet Arc Hub Fac Upp Upp War Pro Res Qua Frg Total 14874 | 107 1093 567 2138 802 640 392 95 387 798 741 274 729 140 599 387 609 1266 289 957 856 1008 Wait 1568 | 3 390 15 3 41 275 . . 5 44 23 7 180 6 12 39 53 230 5 164 53 20 Move 11920 | 83 615 463 2056 600 342 384 93 364 668 548 215 471 127 461 332 531 982 273 723 711 878 Hop . | . . . . . . . . . . . . . . . . . . . . . . Pick Up 190 | 5 19 13 33 15 1 2 . 2 12 16 8 7 . 12 6 5 9 1 7 13 4 Fast Attach 108 | 7 1 . 2 17 1 . 1 2 2 18 7 9 . 9 1 3 7 . 5 9 7 Attach 80 | . . 7 1 5 . . . . 10 6 5 1 . 15 3 2 2 2 4 4 13 Detach 42 | . . 1 1 3 . . . . 5 5 2 2 . 6 1 2 2 . 6 2 4 Swap 88 | 1 4 6 5 11 2 . . 3 8 4 1 4 1 5 1 4 2 1 5 8 12 Drop 215 | . 12 6 37 20 2 2 1 4 13 23 12 11 . 6 4 7 13 . 8 24 10 Fire 332 | 8 52 56 . 43 6 2 . 4 2 53 17 33 . 20 . 2 19 3 6 6 . Melee 267 | . . . . 46 11 2 . 3 33 10 . 11 6 44 . . . 4 29 25 43 Ram 2 | . . . . . . . . . . 1 . . . . . . . . . . 1 Kick 5 | . . . . . . . . . . 5 . . . . . . . . . . . Crush . | . . . . . . . . . . . . . . . . . . . . . . Escape Stasis 32 | . . . . . . . . . . 6 . . . 9 . . . . . 1 16 Rewire 23 | . . . . . . . . . . 23 . . . . . . . . . . . Trap . | . . . . . . . . . . . . . . . . . . . . . . Miscellaneous 2 | . . . . 1 . . . . 1 . . . . . . . . . . . . Route ------- -11/Scrapyard -10/Materials (discovered 4 exits: [*Mat x2] / *Min / [*Sub]) -10/Subcaves (discovered 3 exits: [*Mat x2] / *Scr) -8/Scraptown (discovered 2 exits: *Fac x2) -6/Factory (discovered 6 exits: Fac x4 / *Low x2) -6/Lower Caves -6/Lower Caves (discovered 2 exits: Fac / *Dat) -6/Data Miner -5/Proximity Caves -5/Factory (discovered 6 exits: *Fac x2 / Upp x2 / *Ext x2) -5/Extension (discovered 2 exits: *Fac / *Cet) -5/Cetus (discovered 2 exits: *Fac / *Arc) -5/Archives (discovered 3 exits: *Fac / *Hub x2) -5/Hub_04(d) -4/Factory (discovered 7 exits: *Res x4 / *Upp x2 / Arm) -4/Upper Caves -4/Upper Caves (discovered 2 exits: Res / *War) -4/Warlord -3/Proximity Caves -3/Research (discovered 2 exits: Res / *Qua) -3/Quarantine (discovered 3 exits: *Res / [*Sec] / *Frg) -3/Protoforge History --------- Turn | Location | Event 9 | -11/Scrapyard | Discovered new exit (range 15) 175 | -11/Scrapyard | Entered Materials 247 | -10/Materials | Discovered new exit (range 14) 259 | -10/Materials | Identified exit to Mines 303 | -10/Materials | Discovered new exit (range 11) 306 | -10/Materials | Build established: Mutant 1249 | -10/Materials | Discovered new exit (range 9) 1686 | -10/Materials | Discovered new exit (range 5) 1725 | -10/Materials | Entered Subcaves 1726 | -10/Subcaves | Approached by a straggling Scientist 1817 | -10/Subcaves | A swath of the cavern ceiling suddenly collapsed 2187 | -10/Subcaves | Core integrity fell below 50% 2198 | -10/Subcaves | Discovered new exit (range 9) 2444 | -10/Subcaves | Core integrity fell below 20% 2467 | -10/Subcaves | Shifting Twisted Machinery released Multitool 2544 | -10/Subcaves | Shifting Twisted Machinery released Flamer 2570 | -10/Subcaves | Discovered new exit (range 5) 2824 | -10/Subcaves | Scientist uncovered a shortcut to Scraptown 2841 | -10/Subcaves | Entered Scraptown 2901 | -8/Scraptown | Heard Great Nut preacher, LISTEN AND RECITE! 2973 | -8/Scraptown | Visited Fellowship of the Rings 3158 | -8/Scraptown | Discovered new exit (range 11) 3214 | -8/Scraptown | Scanned Subdweller tech in exchange for log data 3219 | -8/Scraptown | Learned Factory stockpile data 3221 | -8/Scraptown | Learned location of 1 exit from Factory 3224 | -8/Scraptown | Learned location of Warlord (-4) 3226 | -8/Scraptown | Learned location of Zion (-7) 3228 | -8/Scraptown | Learned location of 2 exits from Factory 4017 | -8/Scraptown | Visited Awakened 4053 | -8/Scraptown | Visited Comm Corps 4188 | -8/Scraptown | Visited TADAMA 4277 | -8/Scraptown | Visited Assassins FH 4358 | -8/Scraptown | Visited UFD Registry 4358 | -8/Scraptown | Registered with UFD as "Slugspawn" 4406 | -8/Scraptown | Visited Chapter 10 4471 | -8/Scraptown | Visited Observation Area 4581 | -8/Scraptown | Visited Scrap Suit Storage 4629 | -8/Scraptown | Visited Junk Repository 4895 | -8/Scraptown | Visited Science Testing Area 4928 | -8/Scraptown | Visited Modified Component R&D 5018 | -8/Scraptown | Visited DA-N13 Charitable Foundation 5028 | -8/Scraptown | Found DCF Scrap (31 items) 5093 | -8/Scraptown | Visited Junk Cannon Lab 5167 | -8/Scraptown | Visited Cartography Club 5375 | -8/Scraptown | Learned location of Extension (-5) 5375 | -8/Scraptown | Learned location of Hub_04(d) (-5) 5375 | -8/Scraptown | Learned 12 Materials zone layouts 5375 | -8/Scraptown | Learned 16 Materials zone layouts 5375 | -8/Scraptown | Learned 8 Factory zone layouts 5375 | -8/Scraptown | Learned 16 Research zone layouts 5375 | -8/Scraptown | Learned 8 Access zone layouts 5375 | -8/Scraptown | Learned 4 Storage zone layouts 5375 | -8/Scraptown | Learned 8 Lower Caves zone layouts 5375 | -8/Scraptown | Learned 12 Proximity Caves zone layouts 5375 | -8/Scraptown | Learned 20 Proximity Caves zone layouts 5375 | -8/Scraptown | Learned 4 Hub_04(d) zone layouts 5375 | -8/Scraptown | Learned location of 1 exit from Factory 5375 | -8/Scraptown | Learned location of 3 exits from Lower Caves 5375 | -8/Scraptown | Learned location of 3 exits from Proximity Caves 5394 | -8/Scraptown | Found Deep Structural Scanner 5873 | -8/Scraptown | Found Scrap Suit 6292 | -8/Scraptown | Visited Shadow of the Wyrm 7059 | -8/Scraptown | Met Optimus 7059 | -8/Scraptown | Accepted into 0bPrime 7131 | -8/Scraptown | Civil war broke out across Scraptown 7171 | -8/Scraptown | Discovered new exit (range 3) 7180 | -8/Scraptown | Entered Factory 7180 | -6/Factory | Evolved 8 slots: Power x1, Propulsion x4, Utility x3 7181 | -6/Factory | Identified exit to Factory 7208 | -6/Factory | Lost 6 allies 7373 | -6/Factory | Discovered new exit (range 7) 7634 | -6/Factory | Build established: Derelict-Mutant 7916 | -6/Factory | Discovered new exit (range 5) 8248 | -6/Factory | Entered Lower Caves 8249 | -6/Lower Caves | Encountered a Warlord checkpoint 8249 | -6/Lower Caves | Identified exit to Lower Caves 8450 | -6/Lower Caves | Build established: Hacker-Mutant 8779 | -6/Lower Caves | Attracted the attention of an 0b10 checkpoint 8908 | -6/Lower Caves | Entered another Lower Caves area 8909 | -6/Lower Caves | Identified exit to Data Miner 8963 | -6/Lower Caves | Spotted B-75 Beast 9304 | -6/Lower Caves | Entered Data Miner 9304 | -6/Data Miner | Discovered new exit (range 6) 9318 | -6/Data Miner | Met Data Miner 9351 | -6/Data Miner | Learned location of Section 7 (-3) 9351 | -6/Data Miner | Acquired the access code to Warlord's prototype stash 9360 | -6/Data Miner | Received God Mode back door access code from Data Miner 9399 | -6/Data Miner | Entered Proximity Caves 9742 | -5/Proximity Caves | Learned Factory machine intel 9790 | -5/Proximity Caves | Entered Factory 9790 | -5/Factory | Evolved 2 slots: Utility x2 9791 | -5/Factory | Identified exit to Upper Caves 9791 | -5/Factory | Identified exit to Extension 9792 | -5/Factory | Loaded intel: 266 machine locations 9808 | -5/Factory | Loaded intel: 8 recycling unit locations 10065 | -5/Factory | Learned location of Protoforge (-3) 10166 | -5/Factory | Fabricated Lgt. Regenerative Plating? 10296 | -5/Factory | Discovered new exit (range 7) 10325 | -5/Factory | Spotted B-75 Beast 10340 | -5/Factory | Discovered new exit (range 19) 10353 | -5/Factory | Entered Extension 10365 | -5/Extension | Lost 4 parts (1p2n1w) 10428 | -5/Extension | Rescued a captive Derelict 10803 | -5/Extension | Energy Cycler disabled 10804 | -5/Extension | Rescued a captive Derelict 10814 | -5/Extension | Rescued a captive Derelict 10937 | -5/Extension | Build established: Scavenger-Mutant 11123 | -5/Extension | Incoming investigation squad redirected 11251 | -5/Extension | Lost 3 allies 11412 | -5/Extension | Loaded intel: 1 recycling unit location 11529 | -5/Extension | Build established: Hacker-Mutant 11562 | -5/Extension | Discovered new exit (range 11) 11576 | -5/Extension | Discovered new exit (range 6) 11585 | -5/Extension | Identified exit to Cetus 11590 | -5/Extension | Entered Cetus 11612 | -5/Cetus | Spotted Cetus Guard 11612 | -5/Cetus | Spotted Cetus Guard 11612 | -5/Cetus | Spotted Cetus Guard 11612 | -5/Cetus | Spotted Cetus Guard 11617 | -5/Cetus | Lost 4 parts (1p1n2u) 11620 | -5/Cetus | Destroyed Cetus Guard 11624 | -5/Cetus | Destroyed Cetus Guard 11625 | -5/Cetus | Destroyed Cetus Guard 11626 | -5/Cetus | Destroyed Cetus Guard 11650 | -5/Cetus | System corruption reached 10% 11719 | -5/Cetus | System corruption reached 30% 11772 | -5/Cetus | Discovered new exit (range 21) 11804 | -5/Cetus | Spotted Cetus Guard 11804 | -5/Cetus | Spotted Cetus Guard 11804 | -5/Cetus | Spotted Cetus Guard 11804 | -5/Cetus | Spotted Cetus Guard 11818 | -5/Cetus | Destroyed Cetus Guard 11820 | -5/Cetus | Destroyed Cetus Guard 11821 | -5/Cetus | Destroyed Cetus Guard 11855 | -5/Cetus | Discovered new exit (range 21) 11865 | -5/Cetus | Destroyed Cetus Guard 11877 | -5/Cetus | Met Revision 17 11928 | -5/Cetus | Build established: Scavenger-Mutant 11975 | -5/Cetus | Identified exit to Archives 11976 | -5/Cetus | Entered Archives 12112 | -5/Archives | Discovered new exit (range 22) 12125 | -5/Archives | Unable to access archive contents 12144 | -5/Archives | Discovered new exit (range 22) 12154 | -5/Archives | Discovered new exit (range 21) 12960 | -5/Archives | Identified exit to Hub_04(d) 13043 | -5/Archives | Entered Hub_04(d) 13044 | -5/Hub_04(d) | Identified exit to Factory 13182 | -5/Hub_04(d) | Incoming investigation squad redirected 13200 | -5/Hub_04(d) | Crushed by falling debris 13200 | -5/Hub_04(d) | Incoming investigation squad redirected 13229 | -5/Hub_04(d) | Network Hub disabled 13251 | -5/Hub_04(d) | Network Hub disabled 13252 | -5/Hub_04(d) | Incoming investigation squad redirected 13260 | -5/Hub_04(d) | Core integrity fell below 50% 13270 | -5/Hub_04(d) | Entered Factory 13270 | -4/Factory | Evolved 2 slots: Propulsion x1, Utility x1 13271 | -4/Factory | Identified exit to Research 13285 | -4/Factory | Identified exit to DSF 13332 | -4/Factory | Loaded intel: 8 recycling unit locations 13349 | -4/Factory | Incoming investigation squad redirected 13423 | -4/Factory | Identified exit to Upper Caves 13423 | -4/Factory | Identified exit to Armory 13500 | -4/Factory | Incoming investigation squad redirected 13600 | -4/Factory | Found Prototype Launcher 13600 | -4/Factory | Identified Tesla Bomb Launcher 13602 | -4/Factory | Destroyed 7 combat bots 13845 | -4/Factory | Lost 5 parts (1p3n1w) 13942 | -4/Factory | Incoming investigation squad redirected 13945 | -4/Factory | Entered Upper Caves 13963 | -4/Upper Caves | Lost 5 parts (2p2n1w) 14022 | -4/Upper Caves | Identified exit to Upper Caves 14088 | -4/Upper Caves | Learned 4 Research zone layouts 14123 | -4/Upper Caves | Entered another Upper Caves area 14133 | -4/Upper Caves | Attacked by a delusional Derelict stockpiling parts 14184 | -4/Upper Caves | Found DCF Scrap (9 items) 14228 | -4/Upper Caves | Learned Research interactive machine intel 14229 | -4/Upper Caves | Build established: Hacker-Mutant 14395 | -4/Upper Caves | Encountered a Warlord checkpoint 14400 | -4/Upper Caves | Discovered new exit (range 8) 14411 | -4/Upper Caves | Entered Warlord 14425 | -4/Warlord | System corruption cleaned by Quarantine Array 14502 | -4/Warlord | Received a Watcher feed algorithm from an ecstatic Tinkerer 14579 | -4/Warlord | Rebuked by Warlord 14589 | -4/Warlord | Opened Warlord's prototype stash 14591 | -4/Warlord | Found Prototype Device 14591 | -4/Warlord | Identified Exp. Focal Shield 14600 | -4/Warlord | Found Prototype Processor 14600 | -4/Warlord | Identified Spectral Analyzer 14603 | -4/Warlord | Found Prototype Processor 14603 | -4/Warlord | Identified Exp. Targeting Computer 14604 | -4/Warlord | Warlord's base attacked by MAIN.C 14616 | -4/Warlord | Found Prototype Energy Cannon 14616 | -4/Warlord | Identified Vortex Cannon 14619 | -4/Warlord | Found Vortex Cannon 14620 | -4/Warlord | Found Vortex Cannon 14622 | -4/Warlord | Found Vortex Cannon 14889 | -4/Warlord | Build established: Hacker-Sprinter 14954 | -4/Warlord | Warlord forces counterattacked 14993 | -4/Warlord | Spotted Executioner 14998 | -4/Warlord | Discovered new exit (range 23) 15004 | -4/Warlord | Spotted Executioner 15004 | -4/Warlord | Spotted Executioner 15028 | -4/Warlord | Destroyed 12 combat bots 15067 | -4/Warlord | Entered Proximity Caves 15091 | -3/Proximity Caves | Lost 18 allies 15242 | -3/Proximity Caves | Entered Research 15242 | -3/Research | Evolved 2 slots: Propulsion x1, Utility x1 15243 | -3/Research | Identified exit to Quarantine 15243 | -3/Research | Identified exit to Research 15244 | -3/Research | Loaded intel: 46 interactive machine locations 15247 | -3/Research | Loaded intel: 5 recycling unit locations 15297 | -3/Research | Found Exp. Signal Interpreter 15442 | -3/Research | Revision forces began assault on 0b10 15628 | -3/Research | Met up with Revision 17++ 15687 | -3/Research | Spotted B-86 Titan 15729 | -3/Research | Spotted B-90 Cyclops 15741 | -3/Research | Entered Quarantine 15807 | -3/Quarantine | Found Alien Artifact 15815 | -3/Quarantine | Identified Phase Armor 15816 | -3/Quarantine | Found Com. Tesla Bomb Launcher 15818 | -3/Quarantine | Found Com. Tesla Bomb Launcher 15849 | -3/Quarantine | Found Alien Energy Cannon 15849 | -3/Quarantine | Identified Core Cannon 15879 | -3/Quarantine | Found Alien Artifact 15879 | -3/Quarantine | Identified Subatomic Replicator 15902 | -3/Quarantine | Found Alien Slashing Weapon 15902 | -3/Quarantine | Identified Sigix Broadsword 15941 | -3/Quarantine | Found Alien Artifact 15992 | -3/Quarantine | Found Alien Artifact 16043 | -3/Quarantine | Build established: Hacker-Scout 16058 | -3/Quarantine | Scanned by Researcher 16059 | -3/Quarantine | Discovered exit to Research (range 18) 16129 | -3/Quarantine | Spotted Fortress 16170 | -3/Quarantine | Discovered new exit (range 6) 16170 | -3/Quarantine | Discovered new exit (range 7) 16172 | -3/Quarantine | Identified exit to Protoforge 16182 | -3/Quarantine | Entered Protoforge 16184 | -3/Protoforge | Superfortress began startup sequence 16452 | -3/Protoforge | Spotted Hotshot 16464 | -3/Protoforge | Spotted Overlord 16468 | -3/Protoforge | Spotted Hotshot 16477 | -3/Protoforge | Spotted Hotshot 16483 | -3/Protoforge | Spotted Hotshot 16548 | -3/Protoforge | Used Subatomic Replicator to replicate Sigix Broadsword 16569 | -3/Protoforge | Found Prototype Protection 16569 | -3/Protoforge | Identified Cep. Core Shell 16582 | -3/Protoforge | Found Prototype Storage 16584 | -3/Protoforge | Found Prototype Storage 16585 | -3/Protoforge | Found Prototype Storage 16587 | -3/Protoforge | Lost 5 parts (1n3u1w) 16591 | -3/Protoforge | Identified Cep. Chromion Battery (x3) 16633 | -3/Protoforge | Lost 9 parts (2p5n2u) 16638 | -3/Protoforge | Core integrity fell below 50% 16664 | -3/Protoforge | Found Prototype Device 16664 | -3/Protoforge | Identified Cep. Antimissile System 16668 | -3/Protoforge | Found Prototype Device 16668 | -3/Protoforge | Identified Crosscalibrator 16672 | -3/Protoforge | Spotted Immortal 16672 | -3/Protoforge | Spotted Immortal 16675 | -3/Protoforge | Incoming investigation squad redirected 16677 | -3/Protoforge | Spotted Decapitator 16677 | -3/Protoforge | Spotted Decapitator 16677 | -3/Protoforge | Spotted Decapitator 16679 | -3/Protoforge | Lost 4 parts (2n2u) 16690 | -3/Protoforge | Core integrity fell below 20% 16695 | -3/Protoforge | Found Exp. Terror Saw 16697 | -3/Protoforge | Destroyed Decapitator 16711 | -3/Protoforge | Destroyed Decapitator 16732 | -3/Protoforge | Destroyed by Y-72 Warden with Quantum Rifle Last Messages --------------- 16715_ C-55 Analyst is analyzing... 16717_ Destroyed Lgt. Fission Core. 16719_ K-01 Serf collects debris. 16719_ Held in stasis. 16720_ C-55 Analyst Antigrav System severed. 16723_ Held in stasis. 16723_ C-55 Analyst is analyzing... 16724_ K-01 Serf collects debris. 16724_ H-88 Terminator retrieves Drone. 16728_ System corrupted: Matter fused (-7). 16728_ Slug penetrates Research Cell. 16728_ K-01 Serf collects debris. 16729_ C-55 Analyst Stasis Beam severed. 16732_ Slug penetrates Research Cell. 16732_ Slammed into Y-72 Warden. 16732_ Adv. Terrain Scan Processor broken. 16732_ Destabilizing: Short circuit. 16732_ K-01 Serf collects debris. 16732_ Slug penetrates H-88 Terminator. 16732_ Slug penetrates P-80 Master. Map ----- +----------------------------------------------------+ | ?????????????????????????????????????????????????? | | ?????????????????????????????????????????????????? | | ?????????????????????????????????????????????????? | | ?????????????????????????????????????????????????? | | ?????????????????????????????????????????????????? | | ?????????????????????????????????????????????????? | | ?????????????????????????????????????????????????? | | ?????????????????????????????????????????????????? | | ?????????????????????????????????????????????????? | | ?????????????????????????????????????????????????? | | ?????????????????????????????????????????????????? | | ?????????????????????????????????????????????????? | | ?????????????????????????????????????????????????? | | ?????????????????????????????????????????????????? | | ?????????????????????????????????????????????????? | | ?????????????????????????????????????????????????? | | ?????????????????????????????????????????????????? | | ?????????????????????????????????????????????????? | | ?????????????????????????????????????????????????? | | ?????????????????????????????????????????????????? | | ?????????????????????????????????????????????????? | | ??????????????????##############?????????????????? | | ??????????????????#"""""*""""""#?????????????????? | | ??????????????????#"/[[!]=]] /"#?????????????????? | | ??????????????????#" ]]/=/Y[[]"#?????????????????? | | ??????????????????###""""@"""###?????????????????? | | ????????????????????# Y]p! "?????????????????? | | ????????????????????" | ""#????????????????? | | ????????????????????" k " #??????????????? | | ????????????????????" #??????????????? | | ????????????????????" hc #??????????????? | | ????????????????????" ##????????????? | | ????????????????????# h "#????????????? | | ????????????????????# "" "#????????????? | | ????????????????????" "" "#????????????? | | ????????????????????" """" "#???????????? | | ????????????????????" #"""""""#???????????? | | ????????????????????## # h#########????????????" | | ?????????????????????#### h#????????????????????" | | ????????????????????????# #????????????????????" | | ????????????????????????# #????????????????????" | | ????????????????????????# #???????????????????!" | | ????????????????????????# #???????????????????!" | | ????????????????????????# ###????????????????? " | | ????????????????????????# "#??????????????????" | | ????????????????????????# "#??????????????????" | | ????????????????????????# "#??????????????????" | | ????????????????????????# "#??????????????????# | | ????????????????????????# ###??????????????????# | | ????????????????????????# #????????????????????# | +----------------------------------------------------+ Best States ------------- Heat Dissipation 67 Energy Generation 51 Energy Capacity 900 Matter Stores 300 Matter Capacity 300 Sight Range 24 Robot Scan Range 19 Terrain Scan Range 20 Terrain Scan Density 210 ECM Strength 2 Jamming Range 16 Power Amplification 30 Additional Mass Support 9 Armor Coverage 900 Core Shielding 90 Melee Speed Boost 20 Phase Shifting 10 Evasion (%) 69 Targeting Accuracy 12 Recoil Reduction 4 Offensive Hacking 36 Defensive Hacking 24 Item Schematics ----------------- Hcp. Storage Unit | -10/Materials | Hacked Hacking Suite | -6/Factory | Scanalyzed Combat Drone Bay | -6/Data Miner | Free Lgt. Regenerative Plating | -6/Data Miner | Free Enh. Armored Leg | -6/Data Miner | Free Exp. Heat Sink | -6/Data Miner | Free Hvy. Gatling Laser | -6/Data Miner | Free Field Propulsion Array | -6/Data Miner | Free Imp. Cloaking Device | -6/Data Miner | Free HERF Cannon | -6/Data Miner | Free Lrn. Terrain Scanner | -5/Factory | Hacked Cld. Linear Gravjet | -3/Quarantine | Hacked Robot Schematics ------------------ G-50 Soldier | -6/Data Miner | Free B-60 Warrior | -6/Data Miner | Free H-66 Slayer | -6/Data Miner | Free A-15 Conveyor | -6/Data Miner | Free H-77 Assassin | -6/Data Miner | Free Fabricated ------------ Lgt. Regenerative Plating | x1 | -5/Factory Repaired ---------- Nothing Alien Tech Used ----------------- Core Cannon Subatomic Replicator Sigix Broadsword Achievements -------------- Left-hand Path Challenges ------------ None Game ------ Seed RagnarokHelicalOptics Manual? 0 Play Time 05:32:33 Cumulative 165.9 hours Start 2025.05.10 @ 12:35:31 End 2025.05.10 @ 22:41:10 Sessions 3 Manual Loads 0 Difficulty Rogue Special Mode None Game No. 92 Rogue 84 Adventurer 8 Explorer 0 Win Type - Total 3 Types 2/0/1/0/0/0/0/0/0/0 Lore% 70 Gallery% 67 Achievement% 57 Wizard Run 0 Options --------- Layout 2 ASCII 0 Keyboard 1 Movement Numpad Keybinds 1 Fullscreen 1 Font 48/Smallcaps Map View 50x44 Zoom Use 0% Tactical HUD 1 Map Filters NONE Filters NONE Steam 1 RUN: d52b72cf-97d1-45c6-91c1-66798e4cbf26